Cogmind - Beta 10.1 @@@ ROGUE MODE // 2020.10.04 @ 14:41:41 Player: HOTSOUP Result: Destroyed by G-34 Mercenary with Small Laser Performance ------------- Evolutions (0) 0 Regions Visited (1) 200 Robots Destroyed (5) 25 Value Destroyed (178) 178 Prototype IDs (0) 0 Alien Tech Used (0) 0 Bonus (0) 0 TOTAL SCORE: 403 Bonus ------- None Cogmind --------- Core Integrity 0/250 Matter 159/300 Energy 250/250 System Corruption 0% Temperature Cool (12) Movement Core (200) Ox3 Location -10/Materials Parts ------- > --- POWER (1) -------- Ion Engine > --- PROPULSION (2) --- (None) > --- UTILITY (2) ------ Small Storage Unit > --- WEAPON (2) ------- Light Assault Rifle > --- INVENTORY (6) ---- Light Ion Engine Light Treads Light Treads Wheel Peak State ------------ > --- POWER ------------ Ion Engine > --- PROPULSION ------- Aluminum Leg Aluminum Leg > --- UTILITY ---------- Small Storage Unit > --- WEAPON ----------- Small Laser Light Assault Rifle > --- INVENTORY -------- Light Ion Engine Light Treads Light Treads Wheel [Rating: 6] Favorites ----------- Power Ion Engine Engine Ion Engine Propulsion Aluminum Leg Leg Aluminum Leg Utility Small Storage Unit Storage Small Storage Unit Weapon Small Laser Energy Gun Small Laser Ballistic Gun Light Assault Rifle Build | -11 -10 ------- Run | Scr Mat Slots Evolved . | . . Power . | . . Propulsion . | . . Utility . | . . Weapon . | . . Parts Attached 7 | 5 2 Power 1 | . 1 Engine 1 | . 1 Core . | . . Reactor . | . . Propulsion 2 | 2 . Treads . | . . Leg 2 | 2 . Wheel . | . . Hover . | . . Flight . | . . Utility 1 | 1 . Device . | . . Storage 1 | 1 . Processor . | . . Hackware . | . . Protection . | . . Artifact . | . . Weapon 3 | 2 1 Energy Gun 2 | 2 . Energy Cannon . | . . Ballistic Gun 1 | . 1 Ballistic Cannon . | . . Launcher . | . . Special Weapon . | . . Impact Weapon . | . . Slashing Weapon . | . . Piercing Weapon . | . . Special Melee Weapon . | . . Unidentified Prototypes . | . . Parts Lost 4 | . 4 Power . | . . Propulsion 2 | . 2 Utility . | . . Weapon 2 | . 2 Highest Loss Streak 4 | . 4 Average Slot Usage (%) 69 | . 69 Engine 5 | . 5 Leg 25 | . 25 Storage 14 | . 14 Energy Gun 17 | . 17 Ballistic Gun 5 | . 5 Naked Turns . | . . Heaviest Build 11 | 7 11 Greatest Support 20 | 20 20 Greatest Overweight (x) . | . . Average Overweight (x) . | . . Largest Inventory Capacity 6 | 6 6 Average Capacity 5 | 5 6 Most Carried 6 | 6 6 Average Carried 4 | 2 5 Final Capacity 6 | 6 6 Final Carried 6 | 6 4 Class Distribution -------------------- 100% | Mutant Dominant Class ---------------- Mutant | -10/Materials Resources | -11 -10 ----------- Run | Scr Mat Matter Collected 128 | 84 44 Remotely . | . . Salvage Created 169 | . 169 Parts 13 | . 13 Haulers Intercepted . | . . Recyclers Shooed . | . . Parts Field Recycled . | . . Retrieved Matter . | . . Parts Self-Destructed . | . . Prevented . | . . Kills | -11 -10 ------- Run | Scr Mat Combat Hostiles Destroyed 4 | . 4 Guns 4 | . 4 Classes Destroyed 2 | . 2 Operator 1 | . 1 Grunt 4 | . 4 Best Kill Streak 2 | . 2 Combat Bots Only 2 | . 2 Max Kills in Single Turn 1 | . 1 Gunslinging . | . . Exploded . | . . Melee . | . . Uniques/NPCs Destroyed . | . . Combat | -11 -10 -------- Run | Scr Mat Damage Taken 666 | . 666 Core 255 | . 255 Absorbed by Shields . | . . Core Remaining (%) 100 | 100 . Volleys Fired 33 | . 33 Largest 2 | . 2 Hottest 90 | . 90 Shots Fired 48 | . 48 Gun 48 | . 48 Cannon . | . . Launcher . | . . Special . | . . Kinetic 19 | . 19 Thermal 29 | . 29 Explosive . | . . Electromagnetic . | . . Robot Hit Streak 9 | . 9 Robot Miss Streak 4 | . 4 Penetration Max . | . . Secondary Targets 1 | . 1 Max Gunslinging Chain 1 | . 1 Shots Hit Robots 35 | . 35 Core Hits 14 | . 14 Critical Hits . | . . Critical Kills . | . . Critical Parts Destroyed . | . . Melee Attacks . | . . Impact . | . . Slashing . | . . Piercing . | . . Sneak Attacks . | . . Combat Hostiles . | . . Follow-up Attacks . | . . Damage Inflicted 365 | . 365 Guns 365 | . 365 Cannons . | . . Explosions . | . . Melee . | . . Ramming . | . . Kinetic 117 | . 117 Thermal 248 | . 248 Explosive . | . . Electromagnetic . | . . Impact . | . . Slashing . | . . Piercing . | . . Highest Corruption . | . . Average Corruption . | . . Corruption Purged . | . . Overload Shots . | . . Overflow Damage . | . . Projectiles . | . . Explosions . | . . Melee . | . . Knockbacks . | . . Impact . | . . Kinetic . | . . Secondary . | . . Self-Inflicted Damage . | . . Shots . | . . Rammed . | . . Targets Rammed . | . . Kicked . | . . Crushed . | . . Highest Temperature 217 | . 217 Average Temperature 73 | . 73 Received Heat Transfer 369 | . 369 Siege Activations . | . . Robots Corrupted . | . . Combat Hostiles . | . . Parts Fried . | . . Impact Corruptions . | . . Robots Melted . | . . Combat Hostiles . | . . Parts Melted . | . . Heat Transferred 645 | . 645 Parts Sabotaged . | . . Parts Stolen . | . . Parts Stripped . | . . Power Chain Reactions . | . . Missiles Intercepted . | . . Alert | -11 -10 ------- Run | Scr Mat Peak Influence 116 | . 116 Initial . | . . Average 34 | . 53 Maximum Alert Level . | . . Low Security (%) 100 | 100 100 Level 1 . | . . Level 2 . | . . Level 3 . | . . Level 4 . | . . Level 5 . | . . High Security . | . . Max Security . | . . Squads Dispatched 2 | . 2 Investigation 1 | . 1 Extermination . | . . Reinforcement 1 | . 1 Assault . | . . Garrison . | . . Intercept . | . . Construction Impeded . | . . Haulers Reinforced . | . . Stealth | -11 -10 --------- Run | Scr Mat Distress Signals . | . . Communications Jammed . | . . Distress Signals . | . . Times Spotted 10 | . 10 Peak Tracking Total 5 | . 5 Tactical Retreats 1 | . 1 Traps | -11 -10 ------- Run | Scr Mat Traps Triggered . | . . Indirectly . | . . Trap Hack Attempts . | . . Triggered . | . . Disarmed . | . . Reprogrammed . | . . Reused . | . . Traps Extracted . | . . Installed . | . . Triggered . | . . Machines | -11 -10 ---------- Run | Scr Mat Machines Disabled . | . . Max in Single Turn . | . . Machines Sabotaged . | . . Garrisons Compromised . | . . Overloaded Fab Kills . | . . Fab Network Shutdowns . | . . Hacking | -11 -10 --------- Run | Scr Mat Machines Accessed 1 | . 1 Terminals 1 | . 1 Fabricators . | . . Repair Stations . | . . Recycling Units . | . . Scanalyzers . | . . Garrison Access . | . . Total Hacks 4 | . 4 Successful 1 | . 1 Failed 3 | . 3 Catastrophic . | . . Database Lockouts . | . . Manual 4 | . 4 Terminals 4 | . 4 Fabricators . | . . Repair Stations . | . . Recycling Units . | . . Scanalyzers . | . . Garrison Access . | . . Terminal Hacks 1 | . 1 Robot Analysis 1 | . 1 Fabricator Hacks . | . . Repair Station Hacks . | . . Recycling Unit Hacks . | . . Scanalyzer . | . . Garrison Access Hacks . | . . Unauthorized Hacks . | . . Terminals . | . . Fabricators . | . . Repair Stations . | . . Recycling Units . | . . Scanalyzers . | . . Garrison Access . | . . Data Cores Recovered . | . . Used . | . . Hacking Detections 1 | . 1 Full Trace Events 1 | . 1 Feedback Events . | . . Feedback Blocked . | . . Robot Schematics Acquired . | . . Robots Built . | . . Matter . | . . Time . | . . Total Robot Build Rating . | . . Part Schematics Acquired . | . . Parts Built . | . . Matter . | . . Time . | . . Total Part Build Rating . | . . Parts Repaired . | . . Time . | . . Parts Recycled . | . . Recycled Matter . | . . Retrieved Matter . | . . Retrieved Components . | . . Parts Scanalyzed . | . . Part Schematics Acquired . | . . Parts Damaged . | . . Bothacking | -11 -10 ------------ Run | Scr Mat Used RIF Installer . | . . Robots Hacked . | . . Non-combat . | . . Combat . | . . Robot Hacks Applied . | . . Relay Couplers Released . | . . Robots Rewired . | . . Allies Hacked . | . . Hacks Repelled . | . . Allies | -11 -10 -------- Run | Scr Mat Total Allies . | . . Largest Group . | . . Highest-Rated Group . | . . Highest-Rated Ally . | . . Total Orders . | . . Ally Attacks . | . . Total Damage . | . . Kills . | . . Allies Corrupted . | . . Allies Melted . | . . Intel | -11 -10 ------- Run | Scr Mat Robot Analysis Total 1 | . 1 Derelict Logs Recovered . | . . Drone Launches . | . . Drone Recoveries . | . . Exploration | -11 -10 ------------- Run | Scr Mat Turns Passed 233 | 82 151 Spaces Moved 124 | 65 59 Core 12 | 12 . Treads . | . . Legs 112 | 53 59 Wheels . | . . Hover . | . . Flight . | . . Fastest Speed 50 | 50 120 Average Speed 113 | 107 120 Slowest Speed 120 | 120 120 Overloaded Moves . | . . Propulsion Burnouts . | . . Robots Hopped . | . . Cave-ins Triggered . | . . Exploration Rate (%) 11 | 4 18 Regions Visited 1 Branch Regions . Pre-discovered Areas . | . . Known Exits Taken . | . . Unknown Exits Taken 1 | 1 . Scrap Searched . | . . Spaces Dug . | . . Terrain Destroyed . | . . Melee . | . . Projectile . | . . AOE . | . . Terrain Rammed . | . . Walls Destroyed . | . . Machines Disabled . | . . Actions | -11 -10 --------- Run | Scr Mat Total 170 | 75 95 Wait 1 | . 1 Move 123 | 64 59 Hop . | . . Pick Up 6 | 6 . Fast Attach 5 | 5 . Attach 2 | . 2 Detach . | . . Swap . | . . Drop . | . . Fire 33 | . 33 Melee . | . . Ram . | . . Kick . | . . Crush . | . . Escape Stasis . | . . Rewire . | . . Trap . | . . Miscellaneous . | . . Route ------- -11/Scrapyard -10/Materials History --------- Turn | Location | Event 3 | -11/Scrapyard | Discovered new exit (range 15) 83 | -11/Scrapyard | Entered Materials 214 | -10/Materials | Core integrity fell below 50% 230 | -10/Materials | Core integrity fell below 20% 234 | -10/Materials | Destroyed by G-34 Mercenary with Small Laser Last Messages --------------- Pest, giving it respectable firepower at a low weight for maintaining high flight speeds. Swarmer squads are particularly susceptible to explosives. 00105_ ALERT: Suspicious activity at Terminal M001. Dispatching Investigation squad. 00133_ O-16 Technician destroyed. 00133_ Switching to secondary target: G-47 Trooper. 00139_ G-47 Trooper destroyed. 00146_ U-05 Engineer lays Concrete. 00152_ R-06 Scavenger collects Datajack. 00156_ R-06 Scavenger collects Hacking Suite. 00159_ G-34 Mercenary heat damages Sml. Laser, Aluminum Leg, Heat Sink. 00162_ Med. Laser destroyed. 00164_ G-34 Mercenary destroyed. 00167_ Acquired 30 matter. 00169_ Acquired 14 matter. 00190_ Sml. Laser destroyed. 00199_ K-01 Serf collects debris. 00215_ G-47 Trooper destroyed. 00217_ Aluminum Leg destroyed. 00229_ G-34 Mercenary destroyed. Map ----- +----------------------------------------------------+ | ?????????????????????????????????????????????????? | | ?????????????????????????????????????????????????? | | ?????????????????????????????????????????????????? | | ????? ????#!???????????????????????????????????? | | ???? ????! ????????????????????????????????? | | ????# ????! !#??????????????????????????????? | | ???? #### ???????????????????????????????? | | ????? ????????????????????????????????? | | ????? ??? ??????????????????????????? | | ?????? [[ ???" ??????????????????????????? | | ?????? [[ ???"" #?????????????????????????? | | ??????? ] ????"" #?????????????????????????? | | ??????? ????? #?????????????????????????? | | ???????# ?????? #?????????????????????????? | | ???????# ??????? #?????????????????????????? | | ???????# = #?????### #?????????????????????????? | | ???????#*=%#?????? # #?????????????????????????? | | ???????#= #???????+ #?????????????????????????? | | ???????# ! #???????# #?????????????????????????? | | ??????# =#???????# #?????????????????????????? | | ????# #???????# #?????????????????????????? | | ??# ######### #######???????????????????? | | # """ /g! #???????????????????? | | + "T" #g[ #???????????????????? | | # """ #g= #???????????????????? | | ??# """ ##%@ #???????????????????? | | ######## """ ## u #???????????????????? | | ???# ## #???????????????????? | | ???# ## #???????????????????? | | ???# """ """ ## #???????????????????? | | ???##### """ """ ## #???????????????????? | | ???????# """ """ ## #???????????????????? | | ???????# T# #???????????????????? | | ???????# ## #???????????????????? | | ???????# """ """ ########???????????????????? | | ???????# """ """ #??????????????????????????? | | ???????# """ """ #??????????????????????????? | | ???????# #??????????????????????????? | | ???????# ##??????????????????????????? | | ???????? """ """ #???????????????????????????? | | ???????? """ ?"" #???????????????????????????? | | ???????? "?? ??" ????????????????????????????? | | ???????? ?????? ????????????????????????????? | | ???????? ???????? ????????????????????????????? | | ??????????????????? ????????????????????????????? | | ?????????????????????????????????????????????????? | | ?????????????????????????????????????????????????? | | ?????????????????????????????????????????????????? | | ?????????????????????????????????????????????????? | | ?????????????????????????????????????????????????? | +----------------------------------------------------+ Best States ------------- Heat Dissipation 25 Energy Generation 10 Energy Capacity 250 Matter Stores 183 Matter Capacity 300 Sight Range 16 Terrain Scan Density 10 Evasion (%) 40 Item Schematics ----------------- None Robot Schematics ------------------ None Fabricated ------------ Nothing Alien Tech Used ----------------- None Achievements -------------- None Challenges ------------ None Game ------ Seed LayeredDiametricAutocannon Manual? 0 Play Time 00:03:57 Cumulative 95.4 hours Start 2020.10.04 @ 14:38:46 End 2020.10.04 @ 14:41:41 Sessions 1 Manual Loads 0 Difficulty Rogue Special Mode None Game No. 142 Rogue 118 Adventurer 22 Explorer 2 Win Type - Total 1 Types 1/0/0/0/0/0/0/0/0 Lore% 47 Gallery% 51 Achievement% 42 Wizard Run 0 Options --------- ASCII 0 Keyboard 0 Movement Numpad Keybinds 0 Fullscreen 1 Font 14/SmallcapsGlow Map View 84x54 Tactical HUD 1 Map Filters NONE Filters NONE Steam 1 RUN: 119d7793-d11e-460c-8d79-efe0f2dfd4b9